Department Family,Entity,Date,Expense Type,Expense Area,Supplier,Amount in sterling
Companies House,CH,05/05/2023,Adjudicator General,Scotland,WALKER LOVE,"7,333.18 "
Companies House,CH,12/05/2023,Belfast Maintenance,Regional Estates - Belfast,GOVERNMENT PROPERTY AGENCY (Montagu Evans),"2,159.19 "
Companies House,CH,12/05/2023,Belfast Maintenance,Regional Estates - Belfast,GOVERNMENT PROPERTY AGENCY (Montagu Evans),"2,159.19 "
Companies House,CH,12/05/2023,Belfast Maintenance,Regional Estates - Belfast,GOVERNMENT PROPERTY AGENCY (Montagu Evans),"2,159.19 "
Companies House,CH,12/05/2023,Belfast Maintenance,Regional Estates - Belfast,GOVERNMENT PROPERTY AGENCY (Montagu Evans),"2,185.22 "
Companies House,CH,17/05/2023,Belfast Maintenance,Regional Estates - Belfast,GOVERNMENT PROPERTY AGENCY (Montagu Evans),"2,255.53 "
Companies House,CH,10/05/2023,Circuit Rental,Infrastructure,Virgin Media Business,"(1,275.34)"
Companies House,CH,10/05/2023,Circuit Rental,Infrastructure,Virgin Media Business,"1,874.32 "
Companies House,CH,22/05/2023,Circuit Rental,Infrastructure,Vodafone Ltd,"6,442.25 "
Companies House,CH,12/05/2023,Cleaning Contract,Building Services,GOVERNMENT PROPERTY AGENCY (Montagu Evans),"48,174.80 "
Companies House,CH,12/05/2023,Cleaning Contract,Building Services,GOVERNMENT PROPERTY AGENCY (Montagu Evans),"48,309.17 "
Companies House,CH,12/05/2023,Cleaning Contract,Building Services,GOVERNMENT PROPERTY AGENCY (Montagu Evans),"48,309.17 "
Companies House,CH,12/05/2023,Cleaning Contract,Building Services,GOVERNMENT PROPERTY AGENCY (Montagu Evans),"48,309.17 "
Companies House,CH,16/05/2023,Cleaning Contract,Building Services,GOVERNMENT PROPERTY AGENCY (Montagu Evans),"48,309.17 "
Companies House,CH,12/05/2023,Cleaning Contract,Regional Estates - Belfast,GOVERNMENT PROPERTY AGENCY (Montagu Evans),"1,874.08 "
Companies House,CH,12/05/2023,Cleaning Contract,Regional Estates - Belfast,GOVERNMENT PROPERTY AGENCY (Montagu Evans),"1,900.11 "
Companies House,CH,12/05/2023,Cleaning Contract,Regional Estates - Belfast,GOVERNMENT PROPERTY AGENCY (Montagu Evans),"1,900.11 "
Companies House,CH,12/05/2023,Cleaning Contract,Regional Estates - Belfast,GOVERNMENT PROPERTY AGENCY (Montagu Evans),"1,900.11 "
Companies House,CH,17/05/2023,Cleaning Contract,Regional Estates - Belfast,GOVERNMENT PROPERTY AGENCY (Montagu Evans),"1,953.70 "
Companies House,CH,12/05/2023,Cleaning Contract,Regional Estates - Edinburgh,GOVERNMENT PROPERTY AGENCY (Montagu Evans),"1,088.12 "
Companies House,CH,12/05/2023,Cleaning Contract,Regional Estates - Edinburgh,GOVERNMENT PROPERTY AGENCY (Montagu Evans),"1,088.12 "
Companies House,CH,12/05/2023,Cleaning Contract,Regional Estates - Edinburgh,GOVERNMENT PROPERTY AGENCY (Montagu Evans),"1,088.12 "
Companies House,CH,12/05/2023,Cleaning Contract,Regional Estates - Edinburgh,GOVERNMENT PROPERTY AGENCY (Montagu Evans),"1,088.12 "
Companies House,CH,12/05/2023,Cleaning Contract,Regional Estates - London,GOVERNMENT PROPERTY AGENCY (Montagu Evans),"1,877.68 "
Companies House,CH,10/05/2023,Cloud Services,Infrastructure Engineering,Amazon Web Services,"(43,228.29)"
Companies House,CH,10/05/2023,Cloud Services,Infrastructure Engineering,Amazon Web Services,"(3,828.95)"
Companies House,CH,10/05/2023,Cloud Services,Infrastructure Engineering,Amazon Web Services,"(3,815.66)"
Companies House,CH,19/05/2023,Cloud Services,Infrastructure Engineering,Amazon Web Services,651.69 
Companies House,CH,10/05/2023,Cloud Services,Infrastructure Engineering,Amazon Web Services,664.34 
Companies House,CH,19/05/2023,Cloud Services,Infrastructure Engineering,Amazon Web Services,"3,081.48 "
Companies House,CH,10/05/2023,Cloud Services,Infrastructure Engineering,Amazon Web Services,"3,151.86 "
Companies House,CH,10/05/2023,Cloud Services,Infrastructure Engineering,Amazon Web Services,"17,404.34 "
Companies House,CH,10/05/2023,Cloud Services,Infrastructure Engineering,Amazon Web Services,"196,492.23 "
Companies House,CH,22/05/2023,Cloud Services,Infrastructure Engineering,Amazon Web Services,"593,700.43 "
Companies House,CH,17/05/2023,Communications Equip Additions TY,Infrastructure,Computacenter (GCAT),"88,139.23 "
Companies House,CH,17/05/2023,Consultants Management,Portfolio,DELOITTE LLP LIMITED,"87,900 "
Companies House,CH,05/05/2023,Contact Centre,Filing,Arvato Limited,"23,982 "
Companies House,CH,22/05/2023,Contract Staff,Accounting,Hays Specialist Recruitment Ltd,738.72 
Companies House,CH,17/05/2023,Contract Staff,Accounting,Hays Specialist Recruitment Ltd,738.72 
Companies House,CH,26/05/2023,Contract Staff,Accounting,Hays Specialist Recruitment Ltd,923.40 
Companies House,CH,05/05/2023,Contract Staff,Accounting,Hays Specialist Recruitment Ltd,923.40 
Companies House,CH,12/05/2023,Contract Staff,Accounting,ALEXANDER MANN SOLUTIONS,"2,016.19 "
Companies House,CH,03/05/2023,Contract Staff,Accounting,ALEXANDER MANN SOLUTIONS,"2,520.24 "
Companies House,CH,12/05/2023,Contract Staff,Accounting,ALEXANDER MANN SOLUTIONS,"2,520.24 "
Companies House,CH,26/05/2023,Contract Staff,Accounting,ALEXANDER MANN SOLUTIONS,"2,520.24 "
Companies House,CH,05/05/2023,Contract Staff,Accounting,ALEXANDER MANN SOLUTIONS,"2,520.24 "
Companies House,CH,22/05/2023,Contract Staff,Accounting,ALEXANDER MANN SOLUTIONS,"2,520.24 "
Companies House,CH,03/05/2023,Contract Staff,Accounting,ALEXANDER MANN SOLUTIONS,"3,150.30 "
Companies House,CH,05/05/2023,Contract Staff,Accounting,ALEXANDER MANN SOLUTIONS,"3,150.30 "
Companies House,CH,22/05/2023,Contract Staff,Accounting,ALEXANDER MANN SOLUTIONS,"3,150.30 "
Companies House,CH,26/05/2023,Contract Staff,Accounting,ALEXANDER MANN SOLUTIONS,"3,150.30 "
Companies House,CH,12/05/2023,Contract Staff,Accounting,ALEXANDER MANN SOLUTIONS,"3,276.29 "
Companies House,CH,26/05/2023,Contract Staff,Accounting,ALEXANDER MANN SOLUTIONS,"4,095.36 "
Companies House,CH,22/05/2023,Contract Staff,Accounting,ALEXANDER MANN SOLUTIONS,"4,095.36 "
Companies House,CH,05/05/2023,Contract Staff,Accounting,ALEXANDER MANN SOLUTIONS,"8,190.72 "
Companies House,CH,24/05/2023,Contract Staff,Architecture & Design,ALEXANDER MANN SOLUTIONS,"(4,032.38)"
Companies House,CH,22/05/2023,Contract Staff,Architecture & Design,ALEXANDER MANN SOLUTIONS,"2,956.46 "
Companies House,CH,12/05/2023,Contract Staff,Architecture & Design,ALEXANDER MANN SOLUTIONS,"3,024.29 "
Companies House,CH,12/05/2023,Contract Staff,Architecture & Design,ALEXANDER MANN SOLUTIONS,"3,276.29 "
Companies House,CH,24/05/2023,Contract Staff,Architecture & Design,ALEXANDER MANN SOLUTIONS,"3,292.06 "
Companies House,CH,10/05/2023,Contract Staff,Architecture & Design,ALEXANDER MANN SOLUTIONS,"3,449.18 "
Companies House,CH,12/05/2023,Contract Staff,Architecture & Design,ALEXANDER MANN SOLUTIONS,"3,449.18 "
Companies House,CH,12/05/2023,Contract Staff,Architecture & Design,ALEXANDER MANN SOLUTIONS,"3,510.86 "
Companies House,CH,22/05/2023,Contract Staff,Architecture & Design,ALEXANDER MANN SOLUTIONS,"3,510.86 "
Companies House,CH,22/05/2023,Contract Staff,Architecture & Design,ALEXANDER MANN SOLUTIONS,"3,568.61 "
Companies House,CH,26/05/2023,Contract Staff,Architecture & Design,ALEXANDER MANN SOLUTIONS,"3,695.58 "
Companies House,CH,03/05/2023,Contract Staff,Architecture & Design,ALEXANDER MANN SOLUTIONS,"3,695.58 "
Companies House,CH,22/05/2023,Contract Staff,Architecture & Design,ALEXANDER MANN SOLUTIONS,"3,780.36 "
Companies House,CH,03/05/2023,Contract Staff,Architecture & Design,ALEXANDER MANN SOLUTIONS,"3,780.36 "
Companies House,CH,10/05/2023,Contract Staff,Architecture & Design,ALEXANDER MANN SOLUTIONS,"3,780.36 "
Companies House,CH,05/05/2023,Contract Staff,Architecture & Design,ALEXANDER MANN SOLUTIONS,"3,780.36 "
Companies House,CH,26/05/2023,Contract Staff,Architecture & Design,ALEXANDER MANN SOLUTIONS,"3,780.36 "
Companies House,CH,26/05/2023,Contract Staff,Architecture & Design,ALEXANDER MANN SOLUTIONS,"3,780.36 "
Companies House,CH,12/05/2023,Contract Staff,Architecture & Design,ALEXANDER MANN SOLUTIONS,"3,931.54 "
Companies House,CH,12/05/2023,Contract Staff,Architecture & Design,ALEXANDER MANN SOLUTIONS,"4,032.38 "
Companies House,CH,05/05/2023,Contract Staff,Architecture & Design,ALEXANDER MANN SOLUTIONS,"4,095.36 "
Companies House,CH,03/05/2023,Contract Staff,Architecture & Design,ALEXANDER MANN SOLUTIONS,"4,095.36 "
Companies House,CH,26/05/2023,Contract Staff,Architecture & Design,ALEXANDER MANN SOLUTIONS,"4,095.36 "
Companies House,CH,22/05/2023,Contract Staff,Architecture & Design,ALEXANDER MANN SOLUTIONS,"4,095.36 "
Companies House,CH,03/05/2023,Contract Staff,Architecture & Design,ALEXANDER MANN SOLUTIONS,"4,095.36 "
Companies House,CH,22/05/2023,Contract Staff,Architecture & Design,ALEXANDER MANN SOLUTIONS,"4,095.36 "
Companies House,CH,26/05/2023,Contract Staff,Architecture & Design,ALEXANDER MANN SOLUTIONS,"4,095.36 "
Companies House,CH,05/05/2023,Contract Staff,Architecture & Design,ALEXANDER MANN SOLUTIONS,"4,095.36 "
Companies House,CH,03/05/2023,Contract Staff,Architecture & Design,ALEXANDER MANN SOLUTIONS,"4,311.48 "
Companies House,CH,05/05/2023,Contract Staff,Architecture & Design,ALEXANDER MANN SOLUTIONS,"4,311.48 "
Companies House,CH,10/05/2023,Contract Staff,Architecture & Design,ALEXANDER MANN SOLUTIONS,"4,388.58 "
Companies House,CH,03/05/2023,Contract Staff,Architecture & Design,ALEXANDER MANN SOLUTIONS,"4,388.58 "
Companies House,CH,12/05/2023,Contract Staff,Architecture & Design,ALEXANDER MANN SOLUTIONS,"4,389.41 "
Companies House,CH,26/05/2023,Contract Staff,Architecture & Design,ALEXANDER MANN SOLUTIONS,"4,460.76 "
Companies House,CH,12/05/2023,Contract Staff,Architecture & Design,ALEXANDER MANN SOLUTIONS,"4,460.76 "
Companies House,CH,03/05/2023,Contract Staff,Architecture & Design,ALEXANDER MANN SOLUTIONS,"4,460.76 "
Companies House,CH,05/05/2023,Contract Staff,Architecture & Design,ALEXANDER MANN SOLUTIONS,"4,601.76 "
Companies House,CH,12/05/2023,Contract Staff,Architecture & Design,ALEXANDER MANN SOLUTIONS,"4,601.76 "
Companies House,CH,12/05/2023,Contract Staff,Architecture & Design,ALEXANDER MANN SOLUTIONS,"4,619.52 "
Companies House,CH,26/05/2023,Contract Staff,Architecture & Design,ALEXANDER MANN SOLUTIONS,"4,619.52 "
Companies House,CH,05/05/2023,Contract Staff,Architecture & Design,ALEXANDER MANN SOLUTIONS,"4,914.42 "
Companies House,CH,22/05/2023,Contract Staff,Architecture & Design,ALEXANDER MANN SOLUTIONS,"4,914.42 "
Companies House,CH,05/05/2023,Contract Staff,Architecture & Design,ALEXANDER MANN SOLUTIONS,"4,914.42 "
Companies House,CH,05/05/2023,Contract Staff,Architecture & Design,ALEXANDER MANN SOLUTIONS,"5,040.48 "
Companies House,CH,05/05/2023,Contract Staff,Architecture & Design,ALEXANDER MANN SOLUTIONS,"5,040.48 "
Companies House,CH,26/05/2023,Contract Staff,Architecture & Design,ALEXANDER MANN SOLUTIONS,"5,317.62 "
Companies House,CH,24/05/2023,Contract Staff,Architecture & Design,ALEXANDER MANN SOLUTIONS,"5,486.76 "
Companies House,CH,22/05/2023,Contract Staff,Architecture & Design,ALEXANDER MANN SOLUTIONS,"5,486.76 "
Companies House,CH,05/05/2023,Contract Staff,Architecture & Design,ALEXANDER MANN SOLUTIONS,"5,486.76 "
Companies House,CH,05/05/2023,Contract Staff,Architecture & Design,ALEXANDER MANN SOLUTIONS,"5,486.76 "
Companies House,CH,22/05/2023,Contract Staff,Architecture & Design,ALEXANDER MANN SOLUTIONS,"6,048.58 "
Companies House,CH,12/05/2023,Contract Staff,Architecture & Design,ALEXANDER MANN SOLUTIONS,"6,652.04 "
Companies House,CH,22/05/2023,Contract Staff,Architecture & Design,ALEXANDER MANN SOLUTIONS,"7,362.82 "
Companies House,CH,26/05/2023,Contract Staff,Architecture & Design,ALEXANDER MANN SOLUTIONS,"7,760.66 "
Companies House,CH,12/05/2023,Contract Staff,Architecture & Design,ALEXANDER MANN SOLUTIONS,"7,760.66 "
Companies House,CH,22/05/2023,Contract Staff,Architecture & Design,ALEXANDER MANN SOLUTIONS,"8,315.14 "
Companies House,CH,12/05/2023,Contract Staff,Architecture & Design,ALEXANDER MANN SOLUTIONS,"8,622.96 "
Companies House,CH,22/05/2023,Contract Staff,Architecture & Design,ALEXANDER MANN SOLUTIONS,"9,072.86 "
Companies House,CH,12/05/2023,Contract Staff,CEO & Directors,ALEXANDER MANN SOLUTIONS,"6,930.66 "
Companies House,CH,26/05/2023,Contract Staff,CEO & Directors,ALEXANDER MANN SOLUTIONS,"6,930.66 "
Companies House,CH,22/05/2023,Contract Staff,CEO & Directors,ALEXANDER MANN SOLUTIONS,"11,089.06 "
Companies House,CH,12/05/2023,Contract Staff,Data Management CC,ALEXANDER MANN SOLUTIONS,"7,560.67 "
Companies House,CH,22/05/2023,Contract Staff,Data Management CC,ALEXANDER MANN SOLUTIONS,"9,450.84 "
Companies House,CH,05/05/2023,Contract Staff,Data Management CC,ALEXANDER MANN SOLUTIONS,"9,450.84 "
Companies House,CH,05/05/2023,Contract Staff,"Data, Analytics & Research",ALEXANDER MANN SOLUTIONS,"2,343.82 "
Companies House,CH,26/05/2023,Contract Staff,"Data, Analytics & Research",ALEXANDER MANN SOLUTIONS,"2,835.24 "
Companies House,CH,05/05/2023,Contract Staff,"Data, Analytics & Research",ALEXANDER MANN SOLUTIONS,"2,835.24 "
Companies House,CH,16/05/2023,Contract Staff,"Data, Analytics & Research",ALEXANDER MANN SOLUTIONS,"3,125.09 "
Companies House,CH,05/05/2023,Contract Staff,"Data, Analytics & Research",ALEXANDER MANN SOLUTIONS,"3,906.36 "
Companies House,CH,22/05/2023,Contract Staff,"Data, Analytics & Research",ALEXANDER MANN SOLUTIONS,"3,906.36 "
Companies House,CH,16/05/2023,Contract Staff,"Data, Analytics & Research",ALEXANDER MANN SOLUTIONS,"4,056.34 "
Companies House,CH,12/05/2023,Contract Staff,"Data, Analytics & Research",ALEXANDER MANN SOLUTIONS,"4,536.38 "
Companies House,CH,24/05/2023,Contract Staff,"Data, Analytics & Research",ALEXANDER MANN SOLUTIONS,"5,070.42 "
Companies House,CH,26/05/2023,Contract Staff,"Data, Analytics & Research",ALEXANDER MANN SOLUTIONS,"5,070.42 "
Companies House,CH,10/05/2023,Contract Staff,"Data, Analytics & Research",ALEXANDER MANN SOLUTIONS,"5,070.42 "
Companies House,CH,22/05/2023,Contract Staff,"Data, Analytics & Research",ALEXANDER MANN SOLUTIONS,"6,552.58 "
Companies House,CH,10/05/2023,Contract Staff,"Data, Analytics & Research",ALEXANDER MANN SOLUTIONS,"13,924.22 "
Companies House,CH,12/05/2023,Contract Staff,HR Strategy & Policy,ALEXANDER MANN SOLUTIONS,"2,495.04 "
Companies House,CH,05/05/2023,Contract Staff,HR Strategy & Policy,ALEXANDER MANN SOLUTIONS,"3,118.80 "
Companies House,CH,03/05/2023,Contract Staff,HR Strategy & Policy,ALEXANDER MANN SOLUTIONS,"3,118.80 "
Companies House,CH,26/05/2023,Contract Staff,Infrastructure,ALEXANDER MANN SOLUTIONS,"1,625.54 "
Companies House,CH,10/05/2023,Contract Staff,Infrastructure,Spring Technology Staffing Services Ltd,"3,411.60 "
Companies House,CH,26/05/2023,Contract Staff,Infrastructure,Spring Technology Staffing Services Ltd,"4,264.50 "
Companies House,CH,17/05/2023,Contract Staff,Infrastructure,Spring Technology Staffing Services Ltd,"4,264.50 "
Companies House,CH,05/05/2023,Contract Staff,Infrastructure,Spring Technology Staffing Services Ltd,"4,264.50 "
Companies House,CH,10/05/2023,Contract Staff,Infrastructure Engineering,Spring Technology Staffing Services Ltd,"3,000 "
Companies House,CH,22/05/2023,Contract Staff,Infrastructure Engineering,ALEXANDER MANN SOLUTIONS,"3,276.29 "
Companies House,CH,12/05/2023,Contract Staff,Infrastructure Engineering,ALEXANDER MANN SOLUTIONS,"3,276.29 "
Companies House,CH,16/05/2023,Contract Staff,Infrastructure Engineering,Spring Technology Staffing Services Ltd,"3,750 "
Companies House,CH,03/05/2023,Contract Staff,Infrastructure Engineering,Spring Technology Staffing Services Ltd,"3,750 "
Companies House,CH,24/05/2023,Contract Staff,Infrastructure Engineering,Spring Technology Staffing Services Ltd,"3,750 "
Companies House,CH,05/05/2023,Contract Staff,Infrastructure Engineering,ALEXANDER MANN SOLUTIONS,"4,095.36 "
Companies House,CH,26/05/2023,Contract Staff,Infrastructure Engineering,ALEXANDER MANN SOLUTIONS,"4,095.36 "
Companies House,CH,05/05/2023,Contract Staff,Infrastructure Engineering,ALEXANDER MANN SOLUTIONS,"4,410.42 "
Companies House,CH,05/05/2023,Contract Staff,Late Filing Penalties,ALEXANDER MANN SOLUTIONS,603.43 
Companies House,CH,05/05/2023,Contract Staff,Late Filing Penalties,ALEXANDER MANN SOLUTIONS,619.49 
Companies House,CH,05/05/2023,Contract Staff,Late Filing Penalties,ALEXANDER MANN SOLUTIONS,665.56 
Companies House,CH,03/05/2023,Contract Staff,Late Filing Penalties,ALEXANDER MANN SOLUTIONS,665.56 
Companies House,CH,22/05/2023,Contract Staff,Late Filing Penalties,ALEXANDER MANN SOLUTIONS,665.56 
Companies House,CH,03/05/2023,Contract Staff,Late Filing Penalties,ALEXANDER MANN SOLUTIONS,665.56 
Companies House,CH,22/05/2023,Contract Staff,Late Filing Penalties,ALEXANDER MANN SOLUTIONS,665.56 
Companies House,CH,05/05/2023,Contract Staff,Late Filing Penalties,ALEXANDER MANN SOLUTIONS,665.56 
Companies House,CH,12/05/2023,Contract Staff,Late Filing Penalties,ALEXANDER MANN SOLUTIONS,688.32 
Companies House,CH,12/05/2023,Contract Staff,Late Filing Penalties,ALEXANDER MANN SOLUTIONS,688.32 
Companies House,CH,12/05/2023,Contract Staff,Late Filing Penalties,ALEXANDER MANN SOLUTIONS,688.32 
Companies House,CH,12/05/2023,Contract Staff,Late Filing Penalties,ALEXANDER MANN SOLUTIONS,688.32 
Companies House,CH,12/05/2023,Contract Staff,Late Filing Penalties,ALEXANDER MANN SOLUTIONS,688.32 
Companies House,CH,12/05/2023,Contract Staff,Late Filing Penalties,ALEXANDER MANN SOLUTIONS,688.32 
Companies House,CH,05/05/2023,Contract Staff,Late Filing Penalties,ALEXANDER MANN SOLUTIONS,688.32 
Companies House,CH,26/05/2023,Contract Staff,Late Filing Penalties,ALEXANDER MANN SOLUTIONS,757.15 
Companies House,CH,03/05/2023,Contract Staff,Late Filing Penalties,ALEXANDER MANN SOLUTIONS,757.15 
Companies House,CH,03/05/2023,Contract Staff,Late Filing Penalties,ALEXANDER MANN SOLUTIONS,860.40 
Companies House,CH,22/05/2023,Contract Staff,Late Filing Penalties,ALEXANDER MANN SOLUTIONS,860.40 
Companies House,CH,05/05/2023,Contract Staff,Late Filing Penalties,ALEXANDER MANN SOLUTIONS,860.40 
Companies House,CH,03/05/2023,Contract Staff,Late Filing Penalties,ALEXANDER MANN SOLUTIONS,860.40 
Companies House,CH,05/05/2023,Contract Staff,Late Filing Penalties,ALEXANDER MANN SOLUTIONS,860.40 
Companies House,CH,05/05/2023,Contract Staff,Late Filing Penalties,ALEXANDER MANN SOLUTIONS,860.40 
Companies House,CH,22/05/2023,Contract Staff,Late Filing Penalties,ALEXANDER MANN SOLUTIONS,860.40 
Companies House,CH,26/05/2023,Contract Staff,Late Filing Penalties,ALEXANDER MANN SOLUTIONS,860.40 
Companies House,CH,03/05/2023,Contract Staff,Late Filing Penalties,ALEXANDER MANN SOLUTIONS,860.40 
Companies House,CH,05/05/2023,Contract Staff,Late Filing Penalties,ALEXANDER MANN SOLUTIONS,860.40 
Companies House,CH,05/05/2023,Contract Staff,Late Filing Penalties,ALEXANDER MANN SOLUTIONS,860.40 
Companies House,CH,22/05/2023,Contract Staff,Late Filing Penalties,ALEXANDER MANN SOLUTIONS,860.40 
Companies House,CH,22/05/2023,Contract Staff,Late Filing Penalties,ALEXANDER MANN SOLUTIONS,860.40 
Companies House,CH,03/05/2023,Contract Staff,Late Filing Penalties,ALEXANDER MANN SOLUTIONS,860.40 
Companies House,CH,26/05/2023,Contract Staff,Late Filing Penalties,ALEXANDER MANN SOLUTIONS,860.40 
Companies House,CH,03/05/2023,Contract Staff,Late Filing Penalties,ALEXANDER MANN SOLUTIONS,860.40 
Companies House,CH,22/05/2023,Contract Staff,Late Filing Penalties,ALEXANDER MANN SOLUTIONS,860.40 
Companies House,CH,10/05/2023,Contract Staff,Late Filing Penalties,INNOVO LAW LTD,"2,208 "
Companies House,CH,12/05/2023,Contract Staff,Portfolio,ALEXANDER MANN SOLUTIONS,"3,528.34 "
Companies House,CH,03/05/2023,Contract Staff,Portfolio,ALEXANDER MANN SOLUTIONS,"3,819.98 "
Companies House,CH,05/05/2023,Contract Staff,Portfolio,ALEXANDER MANN SOLUTIONS,"4,410.42 "
Companies House,CH,26/05/2023,Contract Staff,Portfolio,ALEXANDER MANN SOLUTIONS,"4,410.42 "
Companies House,CH,05/05/2023,Contract Staff,Portfolio,ALEXANDER MANN SOLUTIONS,"4,410.42 "
Companies House,CH,22/05/2023,Contract Staff,Portfolio,ALEXANDER MANN SOLUTIONS,"4,410.42 "
Companies House,CH,12/05/2023,Contract Staff,Portfolio,ALEXANDER MANN SOLUTIONS,"4,774.98 "
Companies House,CH,05/05/2023,Contract Staff,Portfolio,ALEXANDER MANN SOLUTIONS,"4,774.98 "
Companies House,CH,22/05/2023,Contract Staff,Portfolio,ALEXANDER MANN SOLUTIONS,"4,774.98 "
Companies House,CH,26/05/2023,Contract Staff,Portfolio,ALEXANDER MANN SOLUTIONS,"9,549.96 "
Companies House,CH,10/05/2023,Contract Staff,Procurement,ALEXANDER MANN SOLUTIONS,"(11,341.08)"
Companies House,CH,12/05/2023,Contract Staff,Procurement,ALEXANDER MANN SOLUTIONS,749.88 
Companies House,CH,12/05/2023,Contract Staff,Procurement,ALEXANDER MANN SOLUTIONS,882.08 
Companies House,CH,05/05/2023,Contract Staff,Procurement,ALEXANDER MANN SOLUTIONS,899.86 
Companies House,CH,22/05/2023,Contract Staff,Procurement,ALEXANDER MANN SOLUTIONS,937.36 
Companies House,CH,05/05/2023,Contract Staff,Procurement,ALEXANDER MANN SOLUTIONS,937.36 
Companies House,CH,12/05/2023,Contract Staff,Procurement,ALEXANDER MANN SOLUTIONS,"2,740.75 "
Companies House,CH,12/05/2023,Contract Staff,Procurement,ALEXANDER MANN SOLUTIONS,"3,184.70 "
Companies House,CH,24/05/2023,Contract Staff,Procurement,ALEXANDER MANN SOLUTIONS,"3,449.18 "
Companies House,CH,26/05/2023,Contract Staff,Procurement,ALEXANDER MANN SOLUTIONS,"3,449.18 "
Companies House,CH,12/05/2023,Contract Staff,Procurement,ALEXANDER MANN SOLUTIONS,"3,654.34 "
Companies House,CH,12/05/2023,Contract Staff,Procurement,ALEXANDER MANN SOLUTIONS,"3,880.33 "
Companies House,CH,12/05/2023,Contract Staff,Procurement,ALEXANDER MANN SOLUTIONS,"3,947.71 "
Companies House,CH,12/05/2023,Contract Staff,Procurement,ALEXANDER MANN SOLUTIONS,"3,947.71 "
Companies House,CH,12/05/2023,Contract Staff,Procurement,ALEXANDER MANN SOLUTIONS,"3,947.71 "
Companies House,CH,05/05/2023,Contract Staff,Procurement,ALEXANDER MANN SOLUTIONS,"3,980.88 "
Companies House,CH,22/05/2023,Contract Staff,Procurement,ALEXANDER MANN SOLUTIONS,"3,980.88 "
Companies House,CH,24/05/2023,Contract Staff,Procurement,ALEXANDER MANN SOLUTIONS,"4,567.92 "
Companies House,CH,12/05/2023,Contract Staff,Procurement,ALEXANDER MANN SOLUTIONS,"4,567.92 "
Companies House,CH,26/05/2023,Contract Staff,Procurement,ALEXANDER MANN SOLUTIONS,"4,934.64 "
Companies House,CH,12/05/2023,Contract Staff,Procurement,ALEXANDER MANN SOLUTIONS,"4,934.64 "
Companies House,CH,12/05/2023,Contract Staff,Procurement,ALEXANDER MANN SOLUTIONS,"4,934.64 "
Companies House,CH,12/05/2023,Contract Staff,Procurement,ALEXANDER MANN SOLUTIONS,"4,934.64 "
Companies House,CH,22/05/2023,Contract Staff,Procurement,ALEXANDER MANN SOLUTIONS,"4,934.64 "
Companies House,CH,24/05/2023,Contract Staff,Procurement,ALEXANDER MANN SOLUTIONS,"4,934.64 "
Companies House,CH,12/05/2023,Contract Staff,Procurement,ALEXANDER MANN SOLUTIONS,"4,934.64 "
Companies House,CH,24/05/2023,Contract Staff,Procurement,ALEXANDER MANN SOLUTIONS,"4,934.64 "
Companies House,CH,12/05/2023,Contract Staff,Procurement,ALEXANDER MANN SOLUTIONS,"4,934.64 "
Companies House,CH,05/05/2023,Contract Staff,Procurement,ALEXANDER MANN SOLUTIONS,"6,369.41 "
Companies House,CH,12/05/2023,Contract Staff,Procurement,ALEXANDER MANN SOLUTIONS,"7,760.66 "
Companies House,CH,05/05/2023,Contract Staff,Procurement,ALEXANDER MANN SOLUTIONS,"9,869.28 "
Companies House,CH,24/05/2023,Contract Staff,Procurement,ALEXANDER MANN SOLUTIONS,"10,856.21 "
Companies House,CH,05/05/2023,Contract Staff,Procurement,ALEXANDER MANN SOLUTIONS,"23,816.27 "
Companies House,CH,03/05/2023,Contract Staff,Product Delivery,ALEXANDER MANN SOLUTIONS,"12,449.89 "
Companies House,CH,22/05/2023,Contract Staff,Product Delivery,ALEXANDER MANN SOLUTIONS,"13,407.58 "
Companies House,CH,24/05/2023,Contract Staff,Product Design,ALEXANDER MANN SOLUTIONS,"(3,402.29)"
Companies House,CH,16/05/2023,Contract Staff,Product Design,ALEXANDER MANN SOLUTIONS,"3,276.29 "
Companies House,CH,26/05/2023,Contract Staff,Product Design,ALEXANDER MANN SOLUTIONS,"3,276.29 "
Companies House,CH,12/05/2023,Contract Staff,Product Design,ALEXANDER MANN SOLUTIONS,"3,402.29 "
Companies House,CH,12/05/2023,Contract Staff,Product Design,ALEXANDER MANN SOLUTIONS,"3,449.18 "
Companies House,CH,05/05/2023,Contract Staff,Product Design,ALEXANDER MANN SOLUTIONS,"3,449.18 "
Companies House,CH,12/05/2023,Contract Staff,Product Design,ALEXANDER MANN SOLUTIONS,"3,528.34 "
Companies House,CH,22/05/2023,Contract Staff,Product Design,ALEXANDER MANN SOLUTIONS,"3,528.34 "
Companies House,CH,12/05/2023,Contract Staff,Product Design,ALEXANDER MANN SOLUTIONS,"3,528.34 "
Companies House,CH,12/05/2023,Contract Staff,Product Design,ALEXANDER MANN SOLUTIONS,"3,588.82 "
Companies House,CH,12/05/2023,Contract Staff,Product Design,ALEXANDER MANN SOLUTIONS,"3,603.94 "
Companies House,CH,03/05/2023,Contract Staff,Product Design,ALEXANDER MANN SOLUTIONS,"3,827.58 "
Companies House,CH,12/05/2023,Contract Staff,Product Design,ALEXANDER MANN SOLUTIONS,"3,941.95 "
Companies House,CH,12/05/2023,Contract Staff,Product Design,ALEXANDER MANN SOLUTIONS,"4,032.38 "
Companies House,CH,05/05/2023,Contract Staff,Product Design,ALEXANDER MANN SOLUTIONS,"4,095.36 "
Companies House,CH,26/05/2023,Contract Staff,Product Design,ALEXANDER MANN SOLUTIONS,"4,095.36 "
Companies House,CH,22/05/2023,Contract Staff,Product Design,ALEXANDER MANN SOLUTIONS,"4,095.36 "
Companies House,CH,03/05/2023,Contract Staff,Product Design,ALEXANDER MANN SOLUTIONS,"4,095.36 "
Companies House,CH,26/05/2023,Contract Staff,Product Design,ALEXANDER MANN SOLUTIONS,"4,095.36 "
Companies House,CH,03/05/2023,Contract Staff,Product Design,ALEXANDER MANN SOLUTIONS,"4,095.36 "
Companies House,CH,12/05/2023,Contract Staff,Product Design,ALEXANDER MANN SOLUTIONS,"4,095.36 "
Companies House,CH,05/05/2023,Contract Staff,Product Design,ALEXANDER MANN SOLUTIONS,"4,095.36 "
Companies House,CH,22/05/2023,Contract Staff,Product Design,ALEXANDER MANN SOLUTIONS,"4,095.36 "
Companies House,CH,05/05/2023,Contract Staff,Product Design,ALEXANDER MANN SOLUTIONS,"4,095.36 "
Companies House,CH,03/05/2023,Contract Staff,Product Design,ALEXANDER MANN SOLUTIONS,"4,095.36 "
Companies House,CH,03/05/2023,Contract Staff,Product Design,ALEXANDER MANN SOLUTIONS,"4,095.36 "
Companies House,CH,26/05/2023,Contract Staff,Product Design,ALEXANDER MANN SOLUTIONS,"4,095.36 "
Companies House,CH,26/05/2023,Contract Staff,Product Design,ALEXANDER MANN SOLUTIONS,"4,095.36 "
Companies House,CH,05/05/2023,Contract Staff,Product Design,ALEXANDER MANN SOLUTIONS,"4,095.36 "
Companies House,CH,26/05/2023,Contract Staff,Product Design,ALEXANDER MANN SOLUTIONS,"4,252.86 "
Companies House,CH,05/05/2023,Contract Staff,Product Design,ALEXANDER MANN SOLUTIONS,"4,252.86 "
Companies House,CH,22/05/2023,Contract Staff,Product Design,ALEXANDER MANN SOLUTIONS,"4,311.48 "
Companies House,CH,26/05/2023,Contract Staff,Product Design,ALEXANDER MANN SOLUTIONS,"4,311.48 "
Companies House,CH,03/05/2023,Contract Staff,Product Design,ALEXANDER MANN SOLUTIONS,"4,311.48 "
Companies House,CH,05/05/2023,Contract Staff,Product Design,ALEXANDER MANN SOLUTIONS,"4,410.42 "
Companies House,CH,05/05/2023,Contract Staff,Product Design,ALEXANDER MANN SOLUTIONS,"4,410.42 "
Companies House,CH,26/05/2023,Contract Staff,Product Design,ALEXANDER MANN SOLUTIONS,"4,410.42 "
Companies House,CH,05/05/2023,Contract Staff,Product Design,ALEXANDER MANN SOLUTIONS,"4,410.42 "
Companies House,CH,22/05/2023,Contract Staff,Product Design,ALEXANDER MANN SOLUTIONS,"4,410.42 "
Companies House,CH,05/05/2023,Contract Staff,Product Design,ALEXANDER MANN SOLUTIONS,"4,486.02 "
Companies House,CH,03/05/2023,Contract Staff,Product Design,ALEXANDER MANN SOLUTIONS,"4,486.02 "
Companies House,CH,26/05/2023,Contract Staff,Product Design,ALEXANDER MANN SOLUTIONS,"4,486.02 "
Companies House,CH,22/05/2023,Contract Staff,Product Design,ALEXANDER MANN SOLUTIONS,"4,486.02 "
Companies House,CH,22/05/2023,Contract Staff,Product Design,ALEXANDER MANN SOLUTIONS,"4,504.92 "
Companies House,CH,26/05/2023,Contract Staff,Product Design,ALEXANDER MANN SOLUTIONS,"4,504.92 "
Companies House,CH,03/05/2023,Contract Staff,Product Design,ALEXANDER MANN SOLUTIONS,"4,725.42 "
Companies House,CH,05/05/2023,Contract Staff,Product Design,ALEXANDER MANN SOLUTIONS,"4,725.42 "
Companies House,CH,12/05/2023,Contract Staff,Product Design,ALEXANDER MANN SOLUTIONS,"4,788.43 "
Companies House,CH,03/05/2023,Contract Staff,Product Design,ALEXANDER MANN SOLUTIONS,"4,927.44 "
Companies House,CH,05/05/2023,Contract Staff,Product Design,ALEXANDER MANN SOLUTIONS,"4,927.44 "
Companies House,CH,22/05/2023,Contract Staff,Product Design,ALEXANDER MANN SOLUTIONS,"4,927.44 "
Companies House,CH,26/05/2023,Contract Staff,Product Design,ALEXANDER MANN SOLUTIONS,"4,927.44 "
Companies House,CH,22/05/2023,Contract Staff,Product Design,ALEXANDER MANN SOLUTIONS,"5,040.48 "
Companies House,CH,03/05/2023,Contract Staff,Product Design,ALEXANDER MANN SOLUTIONS,"5,040.48 "
Companies House,CH,05/05/2023,Contract Staff,Product Design,ALEXANDER MANN SOLUTIONS,"5,040.48 "
Companies House,CH,26/05/2023,Contract Staff,Product Design,ALEXANDER MANN SOLUTIONS,"5,040.48 "
Companies House,CH,05/05/2023,Contract Staff,Product Design,ALEXANDER MANN SOLUTIONS,"5,985.54 "
Companies House,CH,03/05/2023,Contract Staff,Product Design,ALEXANDER MANN SOLUTIONS,"5,985.54 "
Companies House,CH,22/05/2023,Contract Staff,Product Design,ALEXANDER MANN SOLUTIONS,"5,985.54 "
Companies House,CH,03/05/2023,Contract Staff,Product Design,ALEXANDER MANN SOLUTIONS,"5,985.54 "
Companies House,CH,22/05/2023,Contract Staff,Product Design,ALEXANDER MANN SOLUTIONS,"5,985.54 "
Companies House,CH,26/05/2023,Contract Staff,Product Design,ALEXANDER MANN SOLUTIONS,"5,985.54 "
Companies House,CH,26/05/2023,Contract Staff,Product Design,ALEXANDER MANN SOLUTIONS,"5,985.54 "
Companies House,CH,22/05/2023,Contract Staff,Product Design,ALEXANDER MANN SOLUTIONS,"6,552.58 "
Companies House,CH,22/05/2023,Contract Staff,Product Design,ALEXANDER MANN SOLUTIONS,"7,371.65 "
Companies House,CH,22/05/2023,Contract Staff,Product Design,ALEXANDER MANN SOLUTIONS,"7,655.15 "
Companies House,CH,10/05/2023,Contract Staff,Product Design,ALEXANDER MANN SOLUTIONS,"8,108.86 "
Companies House,CH,22/05/2023,Contract Staff,Product Design,ALEXANDER MANN SOLUTIONS,"8,190.72 "
Companies House,CH,22/05/2023,Contract Staff,Product Design,ALEXANDER MANN SOLUTIONS,"8,505.76 "
Companies House,CH,12/05/2023,Contract Staff,Product Design,ALEXANDER MANN SOLUTIONS,"10,773.97 "
Companies House,CH,03/05/2023,Contract Staff,Projects,ALEXANDER MANN SOLUTIONS,945.08 
Companies House,CH,05/05/2023,Contract Staff,Projects,ALEXANDER MANN SOLUTIONS,"1,890.17 "
Companies House,CH,12/05/2023,Contract Staff,Projects,ALEXANDER MANN SOLUTIONS,"2,772.24 "
Companies House,CH,05/05/2023,Contract Staff,Projects,ALEXANDER MANN SOLUTIONS,"2,772.24 "
Companies House,CH,22/05/2023,Contract Staff,Projects,ALEXANDER MANN SOLUTIONS,"2,772.24 "
Companies House,CH,05/05/2023,Contract Staff,Projects,Hays Specialist Recruitment Ltd,"3,147.48 "
Companies House,CH,12/05/2023,Contract Staff,Projects,ALEXANDER MANN SOLUTIONS,"3,239.33 "
Companies House,CH,22/05/2023,Contract Staff,Projects,ALEXANDER MANN SOLUTIONS,"3,239.33 "
Companies House,CH,03/05/2023,Contract Staff,Projects,ALEXANDER MANN SOLUTIONS,"4,049.16 "
Companies House,CH,26/05/2023,Contract Staff,Projects,ALEXANDER MANN SOLUTIONS,"4,049.16 "
Companies House,CH,05/05/2023,Contract Staff,Projects,ALEXANDER MANN SOLUTIONS,"4,049.16 "
Companies House,CH,12/05/2023,Contract Staff,Projects,ALEXANDER MANN SOLUTIONS,"4,312.62 "
Companies House,CH,22/05/2023,Contract Staff,Projects,ALEXANDER MANN SOLUTIONS,"4,312.62 "
Companies House,CH,05/05/2023,Contract Staff,Projects,ALEXANDER MANN SOLUTIONS,"4,312.62 "
Companies House,CH,05/05/2023,Contract Staff,Projects,ALEXANDER MANN SOLUTIONS,"4,312.62 "
Companies House,CH,12/05/2023,Contract Staff,Strategic Finance,ALEXANDER MANN SOLUTIONS,"3,024.29 "
Companies House,CH,22/05/2023,Contract Staff,Strategic Finance,ALEXANDER MANN SOLUTIONS,"3,024.29 "
Companies House,CH,05/05/2023,Contract Staff,Strategic Finance,ALEXANDER MANN SOLUTIONS,"3,780.36 "
Companies House,CH,05/05/2023,Contract Staff,Strategic Finance,ALEXANDER MANN SOLUTIONS,"3,780.36 "
Companies House,CH,22/05/2023,Contract Staff,"Strategy, Policy & Communications",ALEXANDER MANN SOLUTIONS,"1,946.88 "
Companies House,CH,16/05/2023,Contract Staff,"Strategy, Policy & Communications",Spring Technology Staffing Services Ltd,"2,616.58 "
Companies House,CH,17/05/2023,Contract Staff,"Strategy, Policy & Communications",Spring Technology Staffing Services Ltd,"3,013.02 "
Companies House,CH,24/05/2023,Contract Staff,"Strategy, Policy & Communications",Spring Technology Staffing Services Ltd,"3,092.32 "
Companies House,CH,16/05/2023,Contract Staff,"Strategy, Policy & Communications",Spring Technology Staffing Services Ltd,"3,805.92 "
Companies House,CH,05/05/2023,Contract Staff,"Strategy, Policy & Communications",Spring Technology Staffing Services Ltd,"3,964.50 "
Companies House,CH,24/05/2023,Contract Staff,WebOps & DevOps,Spring Technology Staffing Services Ltd,852.90 
Companies House,CH,22/05/2023,Contract Staff,WebOps & DevOps,Spring Technology Staffing Services Ltd,"2,132.26 "
Companies House,CH,12/05/2023,Contract Staff,WebOps & DevOps,ALEXANDER MANN SOLUTIONS,"3,126.29 "
Companies House,CH,22/05/2023,Contract Staff,WebOps & DevOps,Spring Technology Staffing Services Ltd,"3,411.60 "
Companies House,CH,22/05/2023,Contract Staff,WebOps & DevOps,Spring Technology Staffing Services Ltd,"3,411.60 "
Companies House,CH,22/05/2023,Contract Staff,WebOps & DevOps,Spring Technology Staffing Services Ltd,"3,411.60 "
Companies House,CH,26/05/2023,Contract Staff,WebOps & DevOps,ALEXANDER MANN SOLUTIONS,"3,907.86 "
Companies House,CH,22/05/2023,Contract Staff,WebOps & DevOps,ALEXANDER MANN SOLUTIONS,"3,907.86 "
Companies House,CH,22/05/2023,Contract Staff,WebOps & DevOps,Spring Technology Staffing Services Ltd,"4,264.50 "
Companies House,CH,22/05/2023,Contract Staff,WebOps & DevOps,Spring Technology Staffing Services Ltd,"4,264.50 "
Companies House,CH,05/05/2023,Contract Staff,WebOps & DevOps,Spring Technology Staffing Services Ltd,"4,264.50 "
Companies House,CH,22/05/2023,Creche Facilities,Accounting,Acorns Nurseries,590 
Companies House,CH,12/05/2023,Cycle to work salary sacrifice,Accounting,EDENRED LTD CYCLE TO WORK,"1,179.17 "
Companies House,CH,12/05/2023,Edinburgh Maintenance,Regional Estates - Edinburgh,GOVERNMENT PROPERTY AGENCY (Montagu Evans),"1,341.18 "
Companies House,CH,12/05/2023,Edinburgh Maintenance,Regional Estates - Edinburgh,GOVERNMENT PROPERTY AGENCY (Montagu Evans),"1,341.18 "
Companies House,CH,12/05/2023,Edinburgh Maintenance,Regional Estates - Edinburgh,GOVERNMENT PROPERTY AGENCY (Montagu Evans),"1,341.18 "
Companies House,CH,12/05/2023,Edinburgh Maintenance,Regional Estates - Edinburgh,GOVERNMENT PROPERTY AGENCY (Montagu Evans),"1,341.18 "
Companies House,CH,17/05/2023,Electricity,Building Services,EDF ENERGY CUSTOMERS PLC,"67,765.65 "
Companies House,CH,30/05/2023,Electricity,Regional Estates - Belfast,"Electric Ireland, ESB Independent Energy","1,147.07 "
Companies House,CH,17/05/2023,Electricity,Regional Estates - London,EDF ENERGY CUSTOMERS PLC,"2,002.04 "
Companies House,CH,24/05/2023,Envelopes,Filing,BLAKE ENVELOPES,527 
Companies House,CH,10/05/2023,External Managed Services,Portfolio,KAINOS SOFTWARE LTD,"186,041.33 "
Companies House,CH,10/05/2023,External Managed Services,Portfolio,KAINOS SOFTWARE LTD,"432,956.33 "
Companies House,CH,16/05/2023,Extl Scrum Resource Costs,Architecture & Design,FDM GROUP,"64,860 "
Companies House,CH,16/05/2023,Extl Scrum Resource Costs,Architecture & Design,FDM GROUP,"70,200 "
Companies House,CH,16/05/2023,Extl Scrum Resource Costs,Architecture & Design,FDM GROUP,"89,550 "
Companies House,CH,03/05/2023,Extl Scrum Resource Costs,Portfolio,Ensono Digital Limited,"2,610 "
Companies House,CH,24/05/2023,Hardware & Software Maintenance,HR Strategy & Policy,HFX Ltd,"3,840 "
Companies House,CH,22/05/2023,Hardware & Software Maintenance,Infrastructure,Computacenter (GCAT),"8,141.44 "
Companies House,CH,22/05/2023,Hardware & Software Maintenance,Infrastructure,Computacenter (GCAT),"14,833.37 "
Companies House,CH,26/05/2023,Hardware & Software Maintenance,WebOps & DevOps,Kodak Alaris Ltd,"22,200.55 "
Companies House,CH,10/05/2023,Hardware & Software Maintenance,WebOps & DevOps,Ensono Digital Limited,"47,400 "
Companies House,CH,10/05/2023,Hardware & Software Maintenance,WebOps & DevOps,KEYSIGHT TECHNOLOGIES UK LTD,"48,394.80 "
Companies House,CH,17/05/2023,Hospitality,Filing,KAIROS  VENTURES LTD,"1,178.05 "
Companies House,CH,12/05/2023,Independent adjudication,Late Filing Penalties,Independent adjudication,"1,849 "
Companies House,CH,10/05/2023,Independent adjudication,Late Filing Penalties,Independent adjudication,"3,260 "
Companies House,CH,24/05/2023,ISDN & ADSL Circuits,Infrastructure,British Telecom PLC,"13,185.60 "
Companies House,CH,22/05/2023,Legal Disbursements,Late Filing Penalties Accounting,INDESSER,"49,501.73 "
Companies House,CH,22/05/2023,Legal Disbursements,Late Filing Penalties Accounting,INDESSER,"594,796.50 "
Companies House,CH,22/05/2023,Legal Disbursements,Late Filing Penalties Edinburgh,INDESSER,"1,535.28 "
Companies House,CH,05/05/2023,Legal Disbursements,Late Filing Penalties Edinburgh,ALSTON LAW LTD,"1,447 "
Companies House,CH,22/05/2023,Legal Disbursements,Late Filing Penalties Edinburgh,INDESSER,"96,321.67 "
Companies House,CH,22/05/2023,Legal Disbursements,Late Filing Penalties Northern Ireland,INDESSER,759.53 
Companies House,CH,22/05/2023,Legal Disbursements,Late Filing Penalties Northern Ireland,INDESSER,"(20,977)"
Companies House,CH,22/05/2023,Legal Expenses General,Northern Ireland,PUBLIC PROSECUTION SERVICE,"3,250 "
Companies House,CH,12/05/2023,London Maintenance,Regional Estates - London,GOVERNMENT PROPERTY AGENCY (Montagu Evans),"2,093.78 "
Companies House,CH,12/05/2023,Maintenance,Building Services,GOVERNMENT PROPERTY AGENCY (Montagu Evans),771.76 
Companies House,CH,12/05/2023,Maintenance,Building Services,GOVERNMENT PROPERTY AGENCY (Montagu Evans),"1,337.39 "
Companies House,CH,12/05/2023,Maintenance,Building Services,GOVERNMENT PROPERTY AGENCY (Montagu Evans),"2,551.60 "
Companies House,CH,12/05/2023,Maintenance Contract,Building Services,GOVERNMENT PROPERTY AGENCY (Montagu Evans),"76,920.34 "
Companies House,CH,12/05/2023,Maintenance Contract,Building Services,GOVERNMENT PROPERTY AGENCY (Montagu Evans),"77,134.83 "
Companies House,CH,12/05/2023,Maintenance Contract,Building Services,GOVERNMENT PROPERTY AGENCY (Montagu Evans),"77,134.84 "
Companies House,CH,12/05/2023,Maintenance Contract,Building Services,GOVERNMENT PROPERTY AGENCY (Montagu Evans),"77,134.84 "
Companies House,CH,16/05/2023,Maintenance Contract,Building Services,GOVERNMENT PROPERTY AGENCY (Montagu Evans),"77,134.84 "
Companies House,CH,03/05/2023,Micrographics,Get Company Information,Restore Digital Limited,"1,103.50 "
Companies House,CH,17/05/2023,Miscellaneous licences,Scotland,Equifax PLC,856.67 
Companies House,CH,12/05/2023,Office Furniture,Building Services,D&G OFFICE INTERIORS LTD,705 
Companies House,CH,16/05/2023,Office Furniture,Building Services,D&G OFFICE INTERIORS LTD,750 
Companies House,CH,26/05/2023,Office Machinery Maintenance,Filing,QUADIENT UK LIMITED,"1,409.05 "
Companies House,CH,05/05/2023,Outside Market Research,Filing,INSIGHT MARKET RESEARCH LTD,748.50 
Companies House,CH,03/05/2023,Postage,Filing,DX Network Services Limited,"2,788 "
Companies House,CH,22/05/2023,Postage,Northern Ireland,QUADIENT UK LIMITED,660.67 
Companies House,CH,26/05/2023,Postage,Scotland,Royal Mail,524.37 
Companies House,CH,05/05/2023,Postage,Scotland,Royal Mail,632.59 
Companies House,CH,12/05/2023,Print and Mailing Contract,Filing,APS GROUP,843.60 
Companies House,CH,16/05/2023,Print and Mailing Contract,Filing,APS GROUP,"2,185.88 "
Companies House,CH,22/05/2023,Print and Mailing Contract,Filing,APS GROUP,"2,516.18 "
Companies House,CH,12/05/2023,Print and Mailing Contract,Filing,APS GROUP,"33,276.49 "
Companies House,CH,12/05/2023,Print and Mailing Contract,Filing,APS GROUP,"51,786.50 "
Companies House,CH,12/05/2023,Print and Mailing Contract,Filing,APS GROUP,"55,701.77 "
Companies House,CH,22/05/2023,Print and Mailing Contract,Filing,APS GROUP,"63,611.84 "
Companies House,CH,12/05/2023,Print and Mailing Contract,Filing,APS GROUP,"65,887.51 "
Companies House,CH,16/05/2023,Print and Mailing Contract,Filing,APS GROUP,"70,571.93 "
Companies House,CH,12/05/2023,Print and Mailing Contract,Filing,APS GROUP,"82,716.06 "
Companies House,CH,16/05/2023,Print and Mailing Contract,Portfolio,APS GROUP,"9,081.01 "
Companies House,CH,05/05/2023,Professional Fees,Building Services,Freeney Williams Limited,"7,909.36 "
Companies House,CH,22/05/2023,Professional Fees,DDaT Projects,AUTOMATED-INTELLIGENCE LTD,"4,750 "
Companies House,CH,03/05/2023,Professional Fees,Filing Service,NCC Group Security Services Ltd,"1,150 "
Companies House,CH,22/05/2023,Professional Fees,WebOps & DevOps,CoreFiling,"3,900 "
Companies House,CH,22/05/2023,RATES,Building Services,City and County of Cardiff,"53,945.83 "
Companies House,CH,26/05/2023,RATES,Regional Estates - London,CITY OF WESTMINSTER,"2,287.59 "
Companies House,CH,26/05/2023,RATES,Regional Estates - London,CITY OF WESTMINSTER,"3,529.26 "
Companies House,CH,24/05/2023,Recruitment Expenses,HR Service delivery,Indeed Ireland Operations Ltd,"6,000 "
Companies House,CH,24/05/2023,Recruitment Expenses,HR Service delivery,Indeed Ireland Operations Ltd,"6,000 "
Companies House,CH,24/05/2023,Recruitment Expenses,HR Service delivery,Indeed Ireland Operations Ltd,"12,000 "
Companies House,CH,03/05/2023,Recruitment Expenses,HR Strategy & Policy,Hays Specialist Recruitment Ltd,"6,750 "
Companies House,CH,12/05/2023,Rent,Regional Estates - Belfast,CBRE NI LIMITED,"1,005 "
Companies House,CH,12/05/2023,Rent,Regional Estates - Belfast,CBRE NI LIMITED,"36,531 "
Companies House,CH,12/05/2023,Repayments-Lease Liability CL,Organisational Overheads,GOVERNMENT PROPERTY AGENCY (Montagu Evans),"(2,273,939)"
Companies House,CH,12/05/2023,Repayments-Lease Liability CL,Organisational Overheads,GOVERNMENT PROPERTY AGENCY (Montagu Evans),"(217,970.93)"
Companies House,CH,12/05/2023,Repayments-Lease Liability CL,Organisational Overheads,GOVERNMENT PROPERTY AGENCY (Montagu Evans),"280,348.64 "
Companies House,CH,12/05/2023,Repayments-Lease Liability CL,Organisational Overheads,GOVERNMENT PROPERTY AGENCY (Montagu Evans),"2,073,946.04 "
Companies House,CH,30/05/2023,Repayments-Lease Liability CL,Regional Estates - Edinburgh,KNIGHT FRANK,"65,480 "
Companies House,CH,03/05/2023,Security,Accounting,Loomis Uk Ltd,666.52 
Companies House,CH,17/05/2023,Security,Accounting,Loomis Uk Ltd,766.54 
Companies House,CH,12/05/2023,Security,Building Services,GOVERNMENT PROPERTY AGENCY (Montagu Evans),"46,237.78 "
Companies House,CH,12/05/2023,Security,Building Services,GOVERNMENT PROPERTY AGENCY (Montagu Evans),"46,366.69 "
Companies House,CH,12/05/2023,Security,Building Services,GOVERNMENT PROPERTY AGENCY (Montagu Evans),"46,366.69 "
Companies House,CH,12/05/2023,Security,Building Services,GOVERNMENT PROPERTY AGENCY (Montagu Evans),"46,366.69 "
Companies House,CH,16/05/2023,Security,Building Services,GOVERNMENT PROPERTY AGENCY (Montagu Evans),"46,366.69 "
Companies House,CH,12/05/2023,Security,Regional Estates - London,GOVERNMENT PROPERTY AGENCY (Montagu Evans),"10,596.71 "
Companies House,CH,12/05/2023,Service charges,Regional Estates - Belfast,CBRE NI LIMITED,"7,604.83 "
Companies House,CH,30/05/2023,Service charges,Regional Estates - Edinburgh,KNIGHT FRANK,"17,541.29 "
Companies House,CH,10/05/2023,Software as a service,Cyber Security,E2E ASSURE,"3,120 "
Companies House,CH,10/05/2023,Software as a service,Cyber Security,E2E ASSURE,"12,965.90 "
Companies House,CH,10/05/2023,Software as a service,Cyber Security,E2E ASSURE,"19,935 "
Companies House,CH,10/05/2023,Software as a service,Infrastructure,Synergi Software Limited t/a Synergi,"7,572 "
Companies House,CH,22/05/2023,Software as a service,Infrastructure,Boxxe Ltd,"50,400 "
Companies House,CH,22/05/2023,Software Licence,Building Services,CARDINUS RISK MANAGEMENT LTD,"4,388.10 "
Companies House,CH,12/05/2023,Software Licence,HR Strategy & Policy,Edenred Rewards,"27,475.80 "
Companies House,CH,12/05/2023,Stakeholder Communications,"Strategy, Policy & Communications",REPUTATION INSTITUTE,"32,500 "
Companies House,CH,12/05/2023,Stationery,Procurement,Banner,"2,350.58 "
Companies House,CH,12/05/2023,T & S UK External Training,HR Service delivery,TOTALJOBS GROUP LTD,"2,700 "
Companies House,CH,22/05/2023,Telecom Rental,Infrastructure,AVOIRA LTD,"3,288.83 "
Companies House,CH,12/05/2023,Telephone Costs,Infrastructure,TELEFONICA UK LTD,"1,958.42 "
Companies House,CH,12/05/2023,TFM Management fees,Building Services,GOVERNMENT PROPERTY AGENCY (Montagu Evans),"16,898.96 "
Companies House,CH,12/05/2023,TFM Management fees,Building Services,GOVERNMENT PROPERTY AGENCY (Montagu Evans),"16,912.12 "
Companies House,CH,16/05/2023,TFM Management fees,Building Services,GOVERNMENT PROPERTY AGENCY (Montagu Evans),"16,933.75 "
Companies House,CH,12/05/2023,TFM Management fees,Building Services,GOVERNMENT PROPERTY AGENCY (Montagu Evans),"16,946.06 "
Companies House,CH,12/05/2023,TFM Management fees,Building Services,GOVERNMENT PROPERTY AGENCY (Montagu Evans),"16,946.06 "
Companies House,CH,12/05/2023,TFM Management fees,Organisational Overheads,GOVERNMENT PROPERTY AGENCY (Montagu Evans),"(458,747.25)"
Companies House,CH,12/05/2023,TFM Management fees,Regional Estates - Edinburgh,GOVERNMENT PROPERTY AGENCY (Montagu Evans),"1,083 "
Companies House,CH,12/05/2023,TFM Management fees,Regional Estates - Edinburgh,GOVERNMENT PROPERTY AGENCY (Montagu Evans),"1,083 "
Companies House,CH,12/05/2023,TFM Management fees,Regional Estates - Edinburgh,GOVERNMENT PROPERTY AGENCY (Montagu Evans),"1,083 "
Companies House,CH,12/05/2023,TFM Management fees,Regional Estates - Edinburgh,GOVERNMENT PROPERTY AGENCY (Montagu Evans),"1,083 "
Companies House,CH,12/05/2023,TFM Management fees,Regional Estates - London,GOVERNMENT PROPERTY AGENCY (Montagu Evans),"1,635.53 "
Companies House,CH,22/05/2023,Training Central,Training,ERNST & YOUNG LLP,950 
Companies House,CH,24/05/2023,Training Central,Training,BITESIZE COMPUTER TRAINING LTD,"1,000 "
Companies House,CH,12/05/2023,Training Central,Training,ERNST & YOUNG LLP,"9,284.77 "
Companies House,CH,26/05/2023,Training Digital,Training,Content Design London,850 
Companies House,CH,10/05/2023,Training Directorate,Training,Thomson Reuters,576.09 
Companies House,CH,10/05/2023,Training Directorate,Training,CSL-KPMG LLP,841.91 
Companies House,CH,10/05/2023,Training Directorate,Training,CSL-KPMG LLP,972 
Companies House,CH,26/05/2023,Training Directorate,Training,Thomson Reuters,"1,212.30 "
Companies House,CH,26/05/2023,Training Directorate,Training,CSL-KPMG LLP,"1,549 "
Companies House,CH,16/05/2023,Training Directorate,Training,The Colour Works International Ltd,"2,191 "
Companies House,CH,10/05/2023,Training Directorate,Training,MIND GYM LIMITED,"4,030 "
Companies House,CH,22/05/2023,Training Directorate,Training,COACHING CULTURE LIMITED,"6,250 "
Companies House,CH,05/05/2023,Training Finance,Strategic Finance,LIVE GROUP LTD,"2,226 "
Companies House,CH,23/05/2023,Travel,ILEE Directorate Costs,AD HOC INVOICES,538.56 
Companies House,CH,10/05/2023,Travel,Organisational Overheads,CLARITY TRAVEL LIMITED,"9,919.36 "
Companies House,CH,12/05/2023,Water,Building Services,Dwr Cymru Welsh Water,"2,016.31 "